bitfinex-derivatives/quotes_BTCF0:USTF0_20250828
["timestamp","ask_amount","ask_price","bid_price","bid_amount"]
[1756403852280,0.87914,112520.0,112510.0,0.1580255]
[1756403852492,0.87914,112520.0,112510.0,0.63646126]
[1756403852787,0.85425,112520.0,112510.0,0.63646126]
[1756403852990,0.87914,112520.0,112510.0,0.63646126]
[1756403853288,0.8809,112520.0,112510.0,0.63646126]
[1756403854179,0.04118,112520.0,112510.0,0.63646126]
[1756403854382,0.8807,112520.0,112510.0,0.63646126]
[1756403855683,0.8807,112520.0,112510.0,0.1580255]
[1756403855891,0.8807,112520.0,112510.0,0.63646126]
[1756403860295,0.8807,112520.0,112510.0,0.1580255]
[1756403860496,0.8807,112520.0,112510.0,0.63646126]
[1756403862589,0.04118,112520.0,112510.0,0.63646126]
[1756403862796,0.8785,112520.0,112510.0,0.63646126]
[1756403863296,0.04118,112520.0,112510.0,0.63646126]
[1756403863501,0.87838,112520.0,112510.0,0.63646126]
[1756403864392,0.85329,112520.0,112510.0,0.63646126]
[1756403864696,0.87818,112520.0,112510.0,0.63646126]
[1756403867201,0.87818,112520.0,112510.0,0.1580255]
[1756403867400,0.87818,112520.0,112510.0,0.63646126]
[1756403868603,0.87818,112520.0,112510.0,0.1580255]
[1756403868902,0.87818,112520.0,112510.0,0.63646126]
[1756403874402,0.04118,112520.0,112510.0,0.63646126]
[1756403874603,0.88082,112520.0,112510.0,0.63646126]
[1756403876006,0.88082,112520.0,112510.0,0.1342455]
[1756403876212,0.88082,112520.0,112510.0,0.1188755]
[1756403876409,1.13082,112520.0,112510.0,0.1188755]
[1756403876714,1.2196877,112520.0,112510.0,0.1188755]
[1756403877113,1.13082,112520.0,112510.0,0.1188755]
[1756403877312,1.13082,112520.0,112510.0,0.1342455]
[1756403879516,1.13082,112520.0,112510.0,0.1188755]
[1756403880219,1.2196877,112520.0,112510.0,0.1188755]
[1756403880913,1.69812346,112520.0,112510.0,0.1188755]
[1756403881715,1.96192346,112520.0,112510.0,0.03]
[1756403882020,1.96192346,112520.0,112510.0,0.0888755]
[1756403882222,0.0888834,112510.0,112500.0,0.0888791]
[1756403882417,0.56731916,112510.0,112500.0,0.0888791]
[1756403883809,0.56731916,112510.0,112500.0,0.0898791]
[1756403885022,0.57031916,112510.0,112500.0,0.0898791]
[1756403885222,1.40727916,112510.0,112500.0,0.0888791]
[1756403885523,1.41023916,112510.0,112500.0,0.0888791]
[1756403886524,1.40823916,112510.0,112500.0,0.0888791]
[1756403887024,1.67203916,112510.0,112500.0,0.0888791]
[1756403887226,1.67103916,112510.0,112500.0,0.1046091]
[1756403888026,0.83511916,112510.0,112500.0,0.1046091]
[1756403888219,1.67123916,112510.0,112500.0,0.1046091]
[1756403888618,1.67323916,112510.0,112500.0,0.1046091]
[1756403889124,1.67123916,112510.0,112500.0,0.1046091]
[1756403889325,0.83511916,112510.0,112500.0,0.0888791]
[1756403889525,1.67087916,112510.0,112500.0,0.0888791]
[1756403890025,0.0888835,112500.0,112490.0,0.1281361]
[1756403890326,0.0888835,112500.0,112490.0,0.1046161]
[1756403891715,0.0908835,112500.0,112490.0,0.1046161]
[1756403892226,0.0908835,112500.0,112490.0,0.1281361]
[1756403892429,0.0918835,112500.0,112490.0,0.1281361]
[1756403892726,0.0918835,112500.0,112490.0,0.1046161]
[1756403893023,0.0918835,112500.0,112490.0,0.1281361]
[1756403894625,0.10088833,112500.0,112490.0,0.1281361]
[1756403895026,0.93568833,112500.0,112490.0,0.1281361]
[1756403895221,0.0918835,112500.0,112490.0,0.1281361]
[1756403895422,0.9264035,112500.0,112490.0,0.1281361]
[1756403897525,0.9258035,112500.0,112490.0,0.1281361]
[1756403897924,0.93484397,112500.0,112490.0,0.1281361]
[1756403899428,0.93484397,112500.0,112490.0,0.1046161]
[1756403899628,0.93484397,112500.0,112490.0,0.1281361]
[1756403900322,0.93484397,112500.0,112490.0,0.1046161]
[1756403900527,1.41327973,112500.0,112490.0,0.1046161]
[1756403901127,1.41327973,112500.0,112490.0,0.1281361]
[1756403902134,0.57935973,112500.0,112490.0,0.1281361]
[1756403902336,1.41319973,112500.0,112490.0,0.1281361]
[1756403903036,0.93476397,112500.0,112490.0,0.1281361]
[1756403903534,0.10092397,112500.0,112490.0,0.1281361]
[1756403903735,0.93444397,112500.0,112490.0,0.1281361]
[1756403904435,0.93404397,112500.0,112490.0,0.1281361]
[1756403904635,1.41247973,112500.0,112490.0,0.1281361]
[1756403905528,0.93404397,112500.0,112490.0,0.1281361]
[1756403906034,1.41247973,112500.0,112490.0,0.1046161]
[1756403906234,0.0888913,112490.0,112480.0,0.1281492]
[1756403906537,0.56732706,112490.0,112480.0,0.1281492]
[1756403907438,0.0888913,112490.0,112480.0,0.1281492]
[1756403907640,0.0898913,112490.0,112480.0,0.1281492]
[1756403909229,0.9223313,112490.0,112480.0,0.1281492]
[1756403910833,0.56832706,112490.0,112480.0,0.1046292]
[1756403911038,1.40048706,112490.0,112480.0,0.1046292]
[1756403911640,1.40052706,112490.0,112480.0,0.1285992]
[1756403913242,1.40052706,112490.0,112480.0,0.1046292]
[1756403915239,0.56832706,112490.0,112480.0,0.1046292]
[1756403915545,0.9215713,112490.0,112480.0,0.1285992]
[1756403916244,0.9211313,112490.0,112480.0,0.1285992]
[1756403917844,0.9211313,112490.0,112480.0,0.1046292]
[1756403918538,0.9211313,112490.0,112480.0,0.1285992]
[1756403918845,0.9203313,112490.0,112480.0,0.1285992]
[1756403919944,0.56832706,112490.0,112480.0,0.1285992]
[1756403920144,0.9200513,112490.0,112480.0,0.1285992]
[1756403920944,1.39848706,112490.0,112480.0,0.1285992]
[1756403921245,1.39848706,112490.0,112480.0,0.1046292]
[1756403921639,1.39848706,112490.0,112480.0,0.1285992]
[1756403922240,0.56832706,112490.0,112480.0,0.1285992]
[1756403922446,1.39820706,112490.0,112480.0,0.1285992]
[1756403922645,0.56832706,112490.0,112480.0,0.1285992]
[1756403922848,1.39820706,112490.0,112480.0,0.1285992]
[1756403923346,1.45786773,112490.0,112480.0,0.66669563]
[1756403924848,0.9197713,112490.0,112480.0,0.66669563]
[1756403925049,1.45786773,112490.0,112480.0,0.66669563]
[1756403929153,1.45786773,112490.0,112480.0,0.1285992]
[1756403929347,1.45786773,112490.0,112480.0,0.66669563]
[1756403930049,0.9197713,112490.0,112480.0,0.66669563]
[1756403930250,1.45786773,112490.0,112480.0,0.66669563]
[1756403930552,1.45646773,112490.0,112480.0,0.1285992]
[1756403930753,1.45646773,112490.0,112480.0,0.66669563]
[1756403934851,1.45646773,112490.0,112480.0,0.1285992]
[1756403935052,1.45646773,112490.0,112480.0,0.66669563]
[1756403935757,1.45530773,112490.0,112480.0,0.66669563]
[1756403935958,1.45518773,112490.0,112480.0,0.66669563]
[1756403937160,1.45518773,112490.0,112480.0,0.1285992]
[1756403937360,1.45518773,112490.0,112480.0,0.66669563]
[1756403938464,1.45518773,112490.0,112480.0,0.66669573]
[1756403938664,1.45518773,112490.0,112480.0,0.1046293]
[1756403938859,1.45518773,112490.0,112480.0,0.01573]
[1756403939060,1.45518773,112490.0,112480.0,0.0397]
[1756403939455,1.45518773,112490.0,112480.0,0.1046293]
[1756403939662,0.0888993,112480.0,112470.0,0.1054923]
[1756403939862,0.64535244,112480.0,112470.0,0.1054923]
[1756403940064,0.71486184,112480.0,112470.0,0.0889023]
[1756403941363,0.71486184,112480.0,112470.0,0.001]
[1756403941865,0.0889072,112470.0,112460.0,0.66729593]
[1756403942067,1.45344363,112470.0,112460.0,0.66729593]
[1756403942262,0.62700363,112470.0,112460.0,0.66729593]
[1756403942462,1.45344363,112470.0,112460.0,0.66729593]
[1756403942858,0.17977041,112480.0,112470.0,0.1277472]
[1756403943066,1.00617041,112480.0,112470.0,0.66584363]
[1756403943265,1.54426684,112480.0,112470.0,0.66584363]
[1756403943467,1.54906684,112480.0,112470.0,0.66584363]
[1756403943667,0.71786684,112480.0,112470.0,0.66584363]
[1756403943968,1.54698684,112480.0,112470.0,0.66584363]
[1756403944774,1.54598684,112480.0,112470.0,0.66584363]
[1756403944970,1.54798684,112480.0,112470.0,0.66584363]
[1756403945675,1.54898684,112480.0,112470.0,0.66584363]
[1756403946067,0.71786684,112480.0,112470.0,0.66584363]
[1756403946268,1.54846684,112480.0,112470.0,0.66584363]
[1756403946875,0.71786684,112480.0,112470.0,0.66584363]
[1756403947074,1.54818184,112480.0,112470.0,0.66584363]
[1756403948378,0.71786184,112480.0,112470.0,0.66584363]
[1756403948569,1.54782184,112480.0,112470.0,0.66584363]
[1756403949277,0.71786184,112480.0,112470.0,0.66584363]
[1756403949580,1.45872254,112480.0,112470.0,0.66584363]
[1756403949780,1.00952541,112480.0,112470.0,0.66584363]
[1756403949977,1.54762184,112480.0,112470.0,0.66584363]
[1756403954584,1.54762184,112480.0,112470.0,0.03884]
[1756403954787,0.088923,112450.0,112440.0,0.1277688]
[1756403954994,1.47345871,112450.0,112440.0,0.66586523]
[1756403955196,1.47345871,112450.0,112440.0,0.1277688]
[1756403955484,1.47345871,112450.0,112440.0,0.66586523]
[1756403955681,1.4824768,112450.0,112440.0,0.66586523]
[1756403956180,1.4824768,112450.0,112440.0,0.66686523]
[1756403957281,0.94438037,112450.0,112440.0,0.1287688]
[1756403957783,0.94538037,112450.0,112440.0,0.1297688]
[1756403958386,0.94538037,112450.0,112440.0,0.1277688]
[1756403959893,0.94538037,112450.0,112440.0,0.60638571]
[1756403962792,0.94538037,112450.0,112440.0,0.1277688]
[1756403962994,0.94538037,112450.0,112440.0,0.60638571]
[1756403964187,0.11690037,112450.0,112440.0,0.60638571]
[1756403964385,0.93544228,112450.0,112440.0,0.60638571]
[1756403967595,0.10788228,112450.0,112440.0,0.60638571]
[1756403967787,0.93552228,112450.0,112440.0,0.60638571]
[1756403967988,0.94462678,112450.0,112440.0,0.60638571]
[1756403977104,0.94378678,112450.0,112440.0,0.60638571]
[1756403977305,0.94378678,112450.0,112440.0,1.2044837]
[1756403978401,0.94378678,112450.0,112440.0,0.1277688]
[1756403978600,0.94378678,112450.0,112440.0,1.2044837]
[1756403979200,0.94378678,112450.0,112440.0,0.1277688]
[1756403979503,0.94378678,112450.0,112440.0,1.2044837]
[1756403979804,0.11698678,112450.0,112440.0,1.2044837]
[1756403979996,0.94378678,112450.0,112440.0,1.2044837]
[1756403985800,0.93468228,112450.0,112440.0,1.2044837]
[1756403987612,0.001,112450.0,112440.0,1.4544837]
[1756403987805,0.61332,112450.0,112440.0,1.4544837]
[1756403993213,0.61332,112450.0,112440.0,1.2044837]
[1756403996515,0.61332,112450.0,112440.0,0.1277688]
[1756403996717,0.61332,112450.0,112440.0,1.2044837]
[1756403997312,0.001,112450.0,112440.0,1.2044837]
[1756403997516,0.82764,112450.0,112440.0,1.2044837]
[1756403998717,0.001,112450.0,112440.0,1.2044837]
[1756404002409,0.69677165,112480.0,112440.0,1.2044837]
[1756404002410,0.1600222,112480.0,112470.0,0.129267]
[1756404002616,0.9966222,112480.0,112470.0,1.2059819]
[1756404002816,0.9966222,112480.0,112470.0,0.66762445]
[1756404003016,0.9976222,112480.0,112470.0,0.66762445]
[1756404003418,0.9975822,112480.0,112470.0,0.66762445]
[1756404003824,1.0065836,112480.0,112470.0,0.66762445]
[1756404004012,1.54494105,112480.0,112470.0,0.57871745]
[1756404004217,1.54494105,112480.0,112470.0,0.66762445]
[1756404004413,1.54494105,112480.0,112470.0,0.129267]
[1756404004620,1.54494105,112480.0,112470.0,0.01632]
[1756404005119,0.0915171,112470.0,112460.0,0.66763085]
[1756404005519,0.62987455,112470.0,112460.0,0.66763085]
[1756404005919,0.00261,112470.0,112460.0,0.66763085]
[1756404006116,0.6089494,112480.0,112470.0,0.129267]
[1756404006315,0.6145594,112480.0,112470.0,1.2059819]
[1756404006520,0.9935385,112480.0,112470.0,1.2059819]
[1756404006922,0.9875385,112480.0,112470.0,1.2059819]
[1756404007323,0.9875385,112480.0,112470.0,0.60756541]
[1756404007923,0.9895385,112480.0,112470.0,0.129267]
[1756404008228,0.9895385,112480.0,112470.0,0.60756541]
[1756404008421,0.99837189,112480.0,112470.0,0.60756541]
[1756404008618,0.99837189,112480.0,112470.0,0.129267]
[1756404008819,0.99937189,112480.0,112470.0,0.60756541]
[1756404009021,0.17285189,112480.0,112470.0,0.60756541]
[1756404009219,0.99933189,112480.0,112470.0,0.60756541]
[1756404011424,0.99933189,112480.0,112470.0,0.129267]
[1756404011729,0.99933189,112480.0,112470.0,0.60756541]
[1756404012628,0.99933189,112480.0,112470.0,0.129267]
[1756404012830,0.99933189,112480.0,112470.0,0.60756541]
[1756404013337,0.0915168,112470.0,112460.0,0.60756751]
[1756404013726,0.0915168,112470.0,112460.0,0.51865841]
[1756404013923,0.3415168,112470.0,112460.0,0.04036]
[1756404014122,0.3415168,112470.0,112460.0,0.01632]
[1756404014732,1.1679168,112470.0,112460.0,0.01632]
[1756404015624,0.0905246,112460.0,112450.0,0.60758061]
[1756404015829,0.0915246,112460.0,112450.0,0.60758061]
[1756404016032,0.0915246,112460.0,112450.0,0.04036]
[1756404016238,0.0915325,112450.0,112440.0,0.60758321]
[1756404016444,0.9178925,112450.0,112440.0,0.60758321]
[1756404016839,0.9168925,112450.0,112440.0,0.60758321]
[1756404017739,0.9178925,112450.0,112440.0,0.04036]
[1756404017940,0.9178925,112450.0,112440.0,0.1292904]
[1756404018140,0.9178925,112450.0,112440.0,0.60758881]
[1756404019043,0.9188925,112450.0,112440.0,0.60758881]
[1756404021550,0.0925325,112450.0,112440.0,0.60758881]
[1756404021744,0.9188525,112450.0,112440.0,0.60758881]
[1756404022746,0.0925325,112450.0,112440.0,0.60758881]
[1756404023048,0.9188525,112450.0,112440.0,0.60758881]
[1756404023446,0.00461,112450.0,112440.0,0.60758881]
[1756404023644,0.9172425,112450.0,112440.0,0.60758881]
[1756404024642,0.9188525,112450.0,112440.0,0.60758881]
[1756404025143,0.9198525,112450.0,112440.0,0.60758881]
[1756404026654,0.93768412,112450.0,112440.0,0.60758881]
[1756404027355,0.11136412,112450.0,112440.0,0.60758881]
[1756404027748,0.93764412,112450.0,112440.0,0.60758881]
[1756404029556,0.11136412,112450.0,112440.0,0.60758881]
[1756404029857,0.93764412,112450.0,112440.0,0.60758881]
[1756404031354,0.93764412,112450.0,112440.0,0.01632]
[1756404031556,0.0915403,112440.0,112430.0,0.03842]
[1756404032355,0.0915403,112440.0,112430.0,0.60565661]
[1756404032550,0.8438203,112440.0,112430.0,0.60565661]
[1756404032753,0.0889303,112440.0,112430.0,0.60565661]
[1756404032948,0.9151703,112440.0,112430.0,0.60565661]
[1756404033150,0.9167803,112440.0,112430.0,0.60565661]
[1756404033344,0.11175412,112450.0,112440.0,0.0889303]
[1756404033345,0.11175692,112450.0,112440.0,0.0889303]
[1756404033560,0.11336692,112450.0,112440.0,0.60564871]
[1756404033759,0.93956692,112450.0,112440.0,0.60564871]
[1756404034056,0.93656692,112450.0,112440.0,0.60564871]
[1756404034257,0.93756692,112450.0,112440.0,0.1273503]
[1756404034458,0.93756692,112450.0,112440.0,0.60564871]
[1756404034754,0.93656692,112450.0,112440.0,0.60564871]
[1756404035560,0.93756692,112450.0,112440.0,0.60564871]
[1756404037865,0.93756692,112450.0,112440.0,0.1273503]
[1756404038061,0.93756692,112450.0,112440.0,0.60564871]
[1756404038363,0.93756692,112450.0,112440.0,0.1273503]
[1756404038663,0.0899303,112440.0,112390.0,0.15954779]
[1756404038960,0.00261,112410.0,112400.0,0.1041409]
[1756404039160,0.67621,112410.0,112400.0,0.60567931]
[1756404039361,0.67621,112410.0,112400.0,0.61454815]
[1756404039763,0.10958623,112420.0,112410.0,0.127374]
[1756404039974,0.87218795,112420.0,112410.0,0.127374]
[1756404040159,0.18222795,112420.0,112410.0,0.127374]
[1756404040467,1.00838795,112420.0,112410.0,0.127374]
[1756404041065,1.00838795,112420.0,112410.0,0.60567241]
[1756404042368,1.00838795,112420.0,112410.0,0.130374]
[1756404042865,1.48668636,112420.0,112410.0,0.003]
[1756404043162,1.73668636,112420.0,112410.0,0.003]
[1756404045560,1.73680636,112420.0,112410.0,0.003]
[1756404046768,0.91052636,112420.0,112410.0,0.003]
[1756404047068,1.73680636,112420.0,112410.0,0.003]
[1756404053270,1.48680636,112420.0,112410.0,0.003]
[1756404053772,1.48684636,112420.0,112410.0,0.003]
[1756404056371,0.66052636,112420.0,112410.0,0.003]
[1756404056670,1.48680636,112420.0,112410.0,0.003]
[1756404057771,3.17868636,112420.0,112410.0,0.003]
[1756404058274,2.70038795,112420.0,112410.0,0.003]
[1756404058475,2.35240636,112420.0,112410.0,0.003]
[1756404058675,3.49868636,112420.0,112410.0,0.003]
[1756404059374,3.52486209,112420.0,112410.0,0.003]
[1756404061980,3.78866209,112420.0,112410.0,0.003]
[1756404063271,2.96240309,112420.0,112410.0,0.01854]
[1756404063475,2.64240309,112420.0,112410.0,0.04237]
[1756404063675,3.78864309,112420.0,112410.0,0.04237]
[1756404064078,3.47864309,112420.0,112410.0,0.04237]
[1756404064274,3.84864309,112420.0,112410.0,0.04237]
[1756404065485,3.84864309,112420.0,112410.0,0.003]
[1756404067978,3.84864309,112420.0,112410.0,0.01854]
[1756404069685,3.84864309,112420.0,112410.0,0.003]
[1756404070383,3.84864309,112420.0,112410.0,0.01854]
[1756404070582,3.84864309,112420.0,112410.0,0.04237]
[1756404071175,3.84864309,112420.0,112410.0,0.01854]
[1756404071884,3.37034468,112420.0,112410.0,0.01854]
[1756404072191,3.84864309,112420.0,112410.0,0.01854]
[1756404072883,3.84864309,112420.0,112410.0,0.01754]
[1756404073186,3.31026468,112420.0,112410.0,0.76966841]
[1756404073376,2.98926468,112420.0,112410.0,0.85862221]
[1756404073684,2.98765468,112420.0,112410.0,0.85762221]
[1756404073883,2.72385468,112420.0,112410.0,0.85762221]
[1756404074182,1.70990993,112420.0,112410.0,0.86638996]
[1756404074372,2.53606993,112420.0,112410.0,0.86638996]
[1756404076683,0.01802993,112420.0,112410.0,0.86638996]
[1756404076890,0.60818993,112420.0,112410.0,0.86638996]
[1756404078191,0.84410993,112420.0,112410.0,0.86638996]
[1756404079192,0.01802993,112420.0,112410.0,0.86638996]
[1756404087599,0.59640138,112440.0,112430.0,0.1283079]
[1756404087795,0.68533138,112440.0,112430.0,0.60660631]
[1756404088101,0.91336138,112440.0,112430.0,0.60660631]
[1756404088299,0.8435,112440.0,112430.0,0.60660631]
[1756404088799,0.93243,112440.0,112430.0,0.60660631]
[1756404089701,0.93543,112440.0,112430.0,0.60660631]
[1756404090096,0.8465,112440.0,112430.0,0.60660631]
[1756404090295,0.02062,112440.0,112430.0,0.60660631]
[1756404090495,0.84646,112440.0,112430.0,0.60660631]
[1756404090693,0.84442,112440.0,112430.0,0.60660631]
[1756404091296,0.01862,112440.0,112430.0,0.60660631]
[1756404091502,0.01762,112440.0,112430.0,0.60660631]
[1756404091705,0.001,112440.0,112430.0,0.60660631]
[1756404092499,0.01625,112440.0,112430.0,0.60660631]
[1756404092803,0.03428,112440.0,112430.0,0.60660631]
[1756404093503,0.01525,112440.0,112430.0,0.60760631]
[1756404093809,0.01525,112440.0,112430.0,0.67994987]
[1756404094805,0.87787162,112450.0,112440.0,0.1281199]
[1756404095105,0.87787162,112450.0,112440.0,0.60641831]
[1756404096405,0.87887162,112450.0,112440.0,0.60641831]
[1756404096611,0.96767362,112450.0,112440.0,0.60641831]
[1756404098307,0.14203362,112450.0,112440.0,0.60641831]
[1756404098509,0.96767362,112450.0,112440.0,0.60641831]
[1756404099109,0.96767362,112450.0,112440.0,0.1281199]
[1756404099710,0.96767362,112450.0,112440.0,0.60641831]
[1756404103010,0.96759362,112450.0,112440.0,0.60641831]
[1756404104813,0.96755362,112450.0,112440.0,0.60641831]
[1756404105812,0.96751362,112450.0,112440.0,0.60641831]
[1756404108218,0.96747362,112450.0,112440.0,0.60641831]
[1756404111316,0.96747362,112450.0,112440.0,1.20482508]
[1756404114610,0.1232099,112440.0,112430.0,0.66648049]
[1756404114817,0.66156249,112440.0,112430.0,0.66648049]
[1756404115018,1.48688249,112440.0,112430.0,0.66648049]
[1756404115611,0.9485299,112440.0,112430.0,0.66648049]
[1756404115918,0.9485299,112440.0,112430.0,0.66748049]
[1756404116611,0.9485299,112440.0,112430.0,0.1291279]
[1756404116811,0.9485299,112440.0,112430.0,0.66748049]
[1756404117416,0.9485299,112440.0,112430.0,0.60778972]
[1756404119615,0.9485299,112440.0,112430.0,0.1291279]
[1756404119812,0.9485299,112440.0,112430.0,0.60778972]
[1756404121321,0.9484099,112440.0,112430.0,0.60778972]
[1756404121824,0.1232099,112440.0,112430.0,0.60778972]
[1756404122023,0.9484099,112440.0,112430.0,0.60778972]
[1756404122821,0.03428,112440.0,112430.0,0.60778972]
[1756404123026,0.84045,112440.0,112430.0,0.85778972]
[1756404123320,0.01525,112440.0,112430.0,0.85778972]
[1756404123526,0.84041,112440.0,112430.0,0.85778972]
[1756404124731,0.85944,112440.0,112430.0,0.85778972]
[1756404125027,0.84041,112440.0,112430.0,0.85778972]
[1756404126326,0.01525,112440.0,112430.0,0.85778972]
[1756404126526,0.82512,112440.0,112430.0,0.85656972]
[1756404126723,0.84029,112440.0,112430.0,0.85656972]
[1756404126923,0.85932,112440.0,112430.0,0.85656972]
[1756404127532,0.0342,112440.0,112430.0,0.85656972]
[1756404127733,0.85928,112440.0,112430.0,0.85656972]
[1756404129233,0.9482105,112440.0,112430.0,0.85656972]
[1756404129432,0.85928,112440.0,112430.0,0.85656972]
[1756404129734,0.0342,112440.0,112430.0,0.85656972]
[1756404129933,0.85924,112440.0,112430.0,0.85656972]
[1756404130535,0.0342,112440.0,112430.0,0.3779079]
[1756404130728,0.8592,112440.0,112430.0,0.85656972]
[1756404131538,0.0342,112440.0,112430.0,0.85656972]
[1756404131729,0.8592,112440.0,112430.0,0.85656972]
[1756404133041,0.01517,112440.0,112430.0,0.85656972]
[1756404133334,0.85916,112440.0,112430.0,0.85656972]
[1756404134532,0.0342,112440.0,112430.0,0.85656972]
[1756404134733,0.85912,112440.0,112430.0,0.85656972]
[1756404135130,0.0342,112440.0,112430.0,0.85656972]
[1756404135332,0.0342,112450.0,112440.0,0.1282678]
[1756404135533,0.87686092,112450.0,112440.0,0.60692962]
[1756404136439,0.05198092,112450.0,112440.0,0.60692962]
[1756404136636,0.87686092,112450.0,112440.0,0.60692962]
[1756404136836,0.87786092,112450.0,112440.0,0.60692962]
[1756404137339,0.87786092,112450.0,112440.0,0.1282678]
[1756404137539,0.87786092,112450.0,112440.0,0.60692962]
[1756404137941,0.05298092,112450.0,112440.0,0.60692962]
[1756404138142,0.87782092,112450.0,112440.0,0.60692962]
[1756404139435,0.05298092,112450.0,112440.0,0.60692962]
[1756404139640,0.87782092,112450.0,112440.0,0.60692962]
[1756404140837,0.87778092,112450.0,112440.0,0.60692962]
[1756404141439,0.87778092,112450.0,112440.0,1.20484848]
[1756404143943,0.87766092,112450.0,112440.0,1.20484848]
[1756404148750,0.05298092,112450.0,112440.0,1.20484848]
[1756404148939,0.01878092,112450.0,112440.0,1.45484848]
[1756404152148,0.01878092,112450.0,112440.0,1.45584848]
[1756404152650,0.01778092,112450.0,112440.0,1.45584848]
[1756404152850,0.01778092,112450.0,112440.0,1.45684848]
[1756404153449,0.01778092,112450.0,112440.0,1.45584848]
[1756404155047,0.03681092,112450.0,112440.0,1.20584848]
[1756404155241,0.03681092,112450.0,112440.0,0.1065678]
[1756404155242,0.68059396,112450.0,112440.0,0.1065678]
[1756404155443,0.14230362,112450.0,112440.0,0.64485814]
[1756404155843,0.93059396,112450.0,112440.0,0.0899278]
[1756404156046,0.93059396,112450.0,112440.0,0.53929034]
[1756404156753,0.93159396,112450.0,112440.0,0.53829034]
[1756404157151,0.93159396,112450.0,112440.0,0.64287094]
[1756404157342,0.39330362,112450.0,112440.0,0.1045806]
[1756404159156,0.39330362,112450.0,112440.0,0.1290206]
[1756404159657,0.39330362,112450.0,112440.0,0.1045806]
[1756404160156,0.39330362,112450.0,112440.0,0.1290206]
[1756404160456,1.12862092,112450.0,112440.0,0.60764755]
[1756404161049,0.05438092,112450.0,112440.0,0.60764755]
[1756404161254,0.87858092,112450.0,112440.0,0.60764755]
[1756404163651,0.05438092,112450.0,112440.0,0.60764755]
[1756404163846,0.87854092,112450.0,112440.0,0.60764755]
[1756404165650,0.86072,112450.0,112440.0,0.60764755]
[1756404165856,0.84169,112450.0,112440.0,1.0862745]
[1756404166256,0.86072,112450.0,112440.0,1.0862745]
[1756404166456,0.86072,112450.0,112440.0,0.60764755]
[1756404166657,0.86072,112450.0,112440.0,0.1290206]
[1756404166857,0.86072,112450.0,112440.0,0.60764755]
[1756404167458,0.86068,112450.0,112440.0,0.60764755]
[1756404168566,0.86068,112450.0,112440.0,0.1290206]
[1756404168767,0.86068,112450.0,112440.0,0.60764755]
[1756404171467,0.0366,112450.0,112440.0,0.60764755]
[1756404171766,0.56304,112450.0,112440.0,1.0862745]
[1756404171967,0.86056,112450.0,112440.0,1.0862745]
[1756404173970,0.86056,112450.0,112440.0,0.60764755]
[1756404176070,0.9672327,112450.0,112440.0,0.0889309]
[1756404176270,0.9672327,112450.0,112440.0,0.58320785]
[1756404176471,0.1432727,112450.0,112440.0,0.60764785]
[1756404176768,0.9671527,112450.0,112440.0,0.60764785]
[1756404177571,0.8782297,112450.0,112440.0,0.60764785]
[1756404179366,0.0543497,112450.0,112440.0,0.60764785]
[1756404179573,0.8781897,112450.0,112440.0,0.60764785]
[1756404182069,0.0543497,112450.0,112440.0,0.60764785]
[1756404182265,0.8781497,112450.0,112440.0,0.60764785]
[1756404183974,0.9670727,112450.0,112440.0,0.60764785]
[1756404184375,0.0543497,112450.0,112440.0,0.60764785]
[1756404184573,0.8781097,112450.0,112440.0,0.60764785]
[1756404185776,0.0543497,112450.0,112440.0,0.60764785]
[1756404185966,0.8781097,112450.0,112440.0,0.60764785]
[1756404187176,0.0543497,112450.0,112440.0,0.60764785]
[1756404187473,0.8780297,112450.0,112440.0,0.60764785]
[1756404188664,0.0543497,112450.0,112440.0,0.60764785]
[1756404188875,0.8780297,112450.0,112440.0,0.60764785]
[1756404189374,0.0543497,112450.0,112440.0,1.0862748]
[1756404189575,0.8589997,112450.0,112440.0,1.0862748]
[1756404189878,0.0353197,112450.0,112440.0,1.0862748]
[1756404190076,0.8779897,112450.0,112440.0,1.0862748]
[1756404190970,0.0543497,112450.0,112440.0,1.0862748]
[1756404191171,0.6646297,112450.0,112440.0,1.0862748]
[1756404191678,0.0543497,112450.0,112440.0,1.0862748]
[1756404191879,0.0353197,112450.0,112440.0,1.0862748]
[1756404192480,0.0543497,112450.0,112440.0,0.1290209]
[1756404192777,0.3932732,112450.0,112440.0,0.0889309]
[1756404192978,0.0353,112440.0,112430.0,0.60842305]
[1756404193279,0.8589,112440.0,112430.0,0.60842305]
[1756404194379,0.8589,112440.0,112430.0,0.60942305]
[1756404195982,0.9478314,112440.0,112430.0,0.1307961]
[1756404196178,0.9478314,112440.0,112430.0,0.58513305]
[1756404196778,0.9478314,112440.0,112430.0,0.1065061]
[1756404196779,1.1978314,112440.0,112430.0,0.1065061]
[1756404196979,1.1978314,112440.0,112430.0,0.0899361]
[1756404197169,1.1978314,112440.0,112430.0,0.001]
[1756404197376,1.67645835,112440.0,112430.0,0.001]
[1756404197570,0.01903,112430.0,112420.0,0.58427076]
[1756404197771,0.05317812,112430.0,112420.0,0.56770076]
[1756404197975,0.39211742,112430.0,112420.0,0.00013301]
[1756404198274,0.87074437,112430.0,112420.0,0.00013301]
[1756404198474,0.39211742,112430.0,112420.0,0.00013301]
[1756404198679,1.21567742,112430.0,112420.0,0.08908021]
[1756404198875,1.21667742,112430.0,112420.0,0.10565021]
[1756404199079,0.39311742,112430.0,112420.0,0.10565021]
[1756404199284,1.21667742,112430.0,112420.0,0.10565021]
[1756404199581,1.21667742,112430.0,112420.0,0.58427716]
[1756404200272,1.22575477,112430.0,112420.0,0.10565021]
[1756404200477,1.22575477,112430.0,112420.0,0.58427716]
[1756404200876,1.12777812,112430.0,112420.0,0.12994021]
[1756404201684,1.12777812,112430.0,112420.0,0.60856716]
[1756404202483,0.30417812,112430.0,112420.0,0.60856716]
[1756404202684,1.12777812,112430.0,112420.0,0.60856716]
[1756404203580,1.13687509,112430.0,112420.0,0.60856716]
[1756404204883,0.30417812,112430.0,112420.0,0.60856716]
[1756404205285,1.12781812,112430.0,112420.0,0.60856716]
[1756404206183,1.21675742,112430.0,112420.0,0.60856716]
[1756404207483,1.22552583,112430.0,112420.0,0.60856716]
[1756404207989,0.39311742,112430.0,112420.0,0.60856716]
[1756404208192,1.21675742,112430.0,112420.0,0.60856716]
[1756404209592,0.30417812,112430.0,112420.0,0.60856716]
[1756404209794,1.12781812,112430.0,112420.0,0.60856716]
[1756404210088,1.21675742,112430.0,112420.0,0.60856716]
[1756404212395,0.39311742,112430.0,112420.0,0.60856716]
[1756404212596,1.21675742,112430.0,112420.0,0.60856716]
[1756404215590,1.21675742,112430.0,112420.0,0.10565021]
[1756404215793,1.21675742,112430.0,112420.0,0.58427716]
[1756404218097,1.21675742,112430.0,112420.0,0.60827716]
[1756404218394,0.96675742,112430.0,112420.0,0.01670301]
[1756404218696,1.69538437,112430.0,112420.0,0.00013301]
[1756404219296,3.38706437,112430.0,112420.0,0.00013301]
[1756404219899,0.1237972,112420.0,112410.0,0.088955]
[1756404220500,0.1420685,112410.0,112400.0,0.60693455]